Cogmind - Beta 14 @@@ ROGUE MODE // 2024.08.11 @ 02:39:28 Player: Cereal Killer Result: Destroyed by SO-XZU(R) with Subdweller Machine Gun Performance ------------- Evolutions (0) 0 Regions Visited (3) 600 Robots Destroyed (18) 90 Value Destroyed (470) 470 Prototype IDs (2) 40 Alien Tech Used (0) 0 Bonus (0) 0 TOTAL SCORE: 1200 Bonus ------- None Cogmind --------- Core Integrity 0/250 Matter 264/300 Energy 198/200 System Corruption 3% Temperature Cool (0) Movement Rolling (105) Ox1 Location -10/Subcaves Parts ------- > --- POWER (1) -------- Subdweller Power Source > --- PROPULSION (2) --- Armored Wheel Armored Wheel > --- UTILITY (2) ------ Large Storage Unit Structural Scanner > --- WEAPON (2) ------- Light Cannon (fused) Battle Cannon > --- INVENTORY (15) --- Ion Engine Subdweller Power Source Wheel Compact Wheel Armored Wheel Disposable Heat Sink Large Storage Unit High-capacity Battery (250) ECM Suite Light Armor Plating Light Armor Plating Subdweller Machine Gun Makeshift Shrapnel Gun Grenade Launcher Peak State ------------ > --- POWER ------------ Subdweller Power Source > --- PROPULSION ------- Armored Wheel Armored Wheel > --- UTILITY ---------- Large Storage Unit Structural Scanner > --- WEAPON ----------- Subdweller Machine Gun Light Cannon > --- INVENTORY -------- Ion Engine Subdweller Power Source Subdweller Power Source Wheel Compact Wheel Armored Wheel Disposable Heat Sink Large Storage Unit High-capacity Battery ECM Suite Light Armor Plating Light Armor Plating Battle Cannon Grenade Launcher Grenade Launcher [Rating: 13] Favorites ----------- Power Ion Engine Engine Ion Engine Propulsion Armored Wheel Wheel Armored Wheel Utility Structural Scanner Device Structural Scanner Storage Large Storage Unit Protection Light Armor Plating Weapon Grenade Launcher Energy Gun Small Laser Ballistic Gun Assault Rifle Ballistic Cannon Light Cannon Launcher Grenade Launcher Build | -11 -10 -10 -10 ------- Run | Yrd Mat Min Sub Slots Evolved . | . . . . Power . | . . . . Propulsion . | . . . . Utility . | . . . . Weapon . | . . . . Parts Attached 28 | 6 11 1 10 Power 4 | 1 1 . 2 Engine 4 | 1 1 . 2 Core . | . . . . Reactor . | . . . . Propulsion 5 | 2 2 . 1 Treads . | . . . . Leg . | . . . . Wheel 5 | 2 2 . 1 Hover . | . . . . Flight . | . . . . Utility 6 | 1 3 . 2 Device 3 | . 2 . 1 Storage 2 | 1 1 . . Processor . | . . . . Hackware . | . . . . Protection 1 | . . . 1 Artifact . | . . . . Weapon 13 | 2 5 1 5 Energy Gun 4 | 1 2 . 1 Energy Cannon . | . . . . Ballistic Gun 4 | 1 1 . 2 Ballistic Cannon 2 | . . . 2 Launcher 3 | . 2 1 . Special Weapon . | . . . . Impact Weapon . | . . . . Slashing Weapon . | . . . . Piercing Weapon . | . . . . Special Melee Weapon . | . . . . Unidentified Prototypes . | . . . . Parts Lost 6 | . 2 . 4 Power 2 | . 1 . 1 Propulsion 1 | . . . 1 Utility . | . . . . Weapon 3 | . 1 . 2 Highest Loss Streak 2 | . 2 . 2 To Critical Strikes . | . . . . Average Slot Usage (%) 98 | . 96 100 99 Engine 13 | . 12 14 13 Wheel 28 | . 28 28 28 Device 13 | . 12 14 13 Storage 14 | . 14 14 14 Energy Gun 7 | . 8 14 5 Ballistic Gun 6 | . 10 . 6 Ballistic Cannon 6 | . . . 13 Launcher 6 | . 8 14 2 Peak Build Rating 13 | 6 11 11 13 Average Rating 10 | 3 9 11 11 On Entrance 7 | . 6 11 11 Naked Turns . | . . . . Heaviest Build 34 | 13 32 32 34 Greatest Support 26 | 26 26 24 24 Greatest Overweight (x) 2 | . 1 1 2 Average Overweight (x) . | . . 1 1 Largest Inventory Capacity 15 | 8 15 15 15 Average Capacity 13 | 6 12 15 15 Most Carried 15 | 5 15 15 15 Average Carried 12 | 3 11 14 14 Final Capacity 15 | 8 15 15 15 Final Carried 15 | 3 15 15 14 Class Distribution -------------------- 100% | Mutant Dominant Class ---------------- Mutant | -10/Materials Mutant | -10/Mines Mutant | -10/Subcaves Resources | -11 -10 -10 -10 ----------- Run | Yrd Mat Min Sub Matter Collected 729 | 200 110 113 306 Remotely . | . . . . Salvage Created 309 | . 155 49 105 Parts 26 | . 14 8 4 Haulers Intercepted . | . . . . Recyclers Shooed . | . . . . Parts Field Recycled . | . . . . Retrieved Matter . | . . . . Parts Self-Destructed 5 | . . . 5 Prevented . | . . . . Kills | -11 -10 -10 -10 ------- Run | Yrd Mat Min Sub Combat Hostiles Destroyed 15 | . 9 3 3 Guns 4 | . 2 . 2 Cannons 1 | . . . 1 AOE 10 | . 7 3 . Classes Destroyed 6 | . 3 2 1 Worker 1 | . . 1 . Builder 1 | . 1 . . Tunneler 1 | . . 1 . Swarmer 6 | . 3 3 . Grunt 6 | . 6 . . Subdweller 3 | . . . 3 Best Kill Streak 4 | . 4 3 2 Combat Bots Only 4 | . 4 3 2 Max Kills in Single Turn 3 | . 3 2 1 Gunslinging . | . . . . Exploded 3 | . 3 2 . Melee . | . . . . Uniques/NPCs Destroyed . | . . . . Combat | -11 -10 -10 -10 -------- Run | Yrd Mat Min Sub Hostile Shots Fired 84 | . 61 4 19 Missed 23 | . 15 1 7 Damage Taken 1178 | . 638 73 467 Core 267 | . 173 18 76 Absorbed by Shields . | . . . . Core Remaining (%) 100 | 100 . . . Volleys Fired 47 | . 26 17 4 Largest 2 | . 2 1 2 Hottest 75 | . 60 65 75 Shots Fired 58 | . 31 18 9 Gun 35 | . 17 14 4 Cannon 5 | . . . 5 Launcher 18 | . 14 4 . Special . | . . . . Kinetic 17 | . 9 . 8 Thermal 23 | . 8 14 1 Explosive 18 | . 14 4 . Electromagnetic . | . . . . Robot Hit Streak 7 | . 7 1 6 Robot Miss Streak 5 | . 2 5 1 Penetration Max . | . . . . Secondary Targets . | . . . . Shots Hit Robots 26 | . 17 3 6 Core Hits 29 | . 19 5 5 Critical Kills . | . . . . Critical Parts Destroyed . | . . . . Critical Strikes . | . . . . Melee Attacks . | . . . . Impact . | . . . . Slashing . | . . . . Piercing . | . . . . Sneak Attacks . | . . . . Combat Hostiles . | . . . . Follow-up Attacks . | . . . . Damage Inflicted 1175 | . 853 237 85 Guns 215 | . 127 51 37 Cannons 48 | . . . 48 Explosions 912 | . 726 186 . Melee . | . . . . Ramming . | . . . . Kinetic 169 | . 84 . 85 Thermal 94 | . 43 51 . Explosive 912 | . 726 186 . Electromagnetic . | . . . . Impact . | . . . . Slashing . | . . . . Piercing . | . . . . Highest Corruption 3 | . 3 3 3 Average Corruption 2 | . 2 3 3 Corruption Purged . | . . . . Corruption Blocked . | . . . . Effects 25 | . 8 3 14 Message Errors 5 | . 4 . 1 Matter Fused 10 | . 4 . 6 Heat Flow Errors 2 | . . 1 1 Energy Discharges 1 | . . . 1 Parts Fused 1 | . . . 1 Data Loss (minor) 2 | . . 1 1 Data Loss (major) 2 | . . . 2 Misfires 2 | . . 1 1 Overload Shots . | . . . . Overflow Damage 10 | . 10 . . Projectiles . | . . . . Explosions 10 | . 10 . . Melee . | . . . . Knockbacks . | . . . . Impact . | . . . . Kinetic . | . . . . Secondary . | . . . . Self-Inflicted Damage 78 | . 27 51 . Shots 4 | . 2 2 . Rammed . | . . . . Targets Rammed . | . . . . Kicked . | . . . . Crushed . | . . . . Highest Temperature 244 | . 48 244 162 Average Temperature 70 | . 19 94 82 Received Heat Transfer 372 | . 336 . 36 Effects 1 | . . 1 . Interference 1 | . . 1 . Siege Activations . | . . . . Robots Corrupted . | . . . . Combat Hostiles . | . . . . Parts Fried . | . . . . Impact Corruptions . | . . . . Robots Melted . | . . . . Combat Hostiles . | . . . . Parts Melted . | . . . . Heat Transferred 211 | . 100 111 . Parts Sabotaged . | . . . . Parts Stolen . | . . . . Parts Stripped . | . . . . Power Chain Reactions . | . . . . Alert | -11 -10 -10 -10 ------- Run | Yrd Mat Min Sub Peak Influence 301 | . 301 226 . Initial 39 | . . 39 . Average 120 | . 119 163 . Maximum Alert Level 1 | . 1 1 . Low Security (%) 73 | 100 69 76 . Level 1 26 | . 30 23 . Level 2 . | . . . . Level 3 . | . . . . Level 4 . | . . . . Level 5 . | . . . . High Security . | . . . . Max Security . | . . . . Squads Dispatched 1 | . 1 . . Investigation 1 | . 1 . . Extermination . | . . . . Reinforcement . | . . . . Assault . | . . . . Garrison . | . . . . Intercept . | . . . . Searches Triggered . | . . . . Construction Impeded . | . . . . Haulers Reinforced . | . . . . Active Scanning Responses . | . . . . Cargo Convoy Interrupts . | . . . . Stealth | -11 -10 -10 -10 --------- Run | Yrd Mat Min Sub Distress Signals . | . . . . Communications Jammed . | . . . . Distress Signals . | . . . . Times Spotted 18 | . 11 3 4 Peak Tracking Total 5 | . 5 3 2 Tactical Retreats . | . . . . Traps | -11 -10 -10 -10 ------- Run | Yrd Mat Min Sub Traps Triggered 8 | . 3 . 5 Indirectly . | . . . . Trap Hack Attempts . | . . . . Triggered . | . . . . Disarmed . | . . . . Reprogrammed . | . . . . Reused . | . . . . Traps Extracted . | . . . . Installed . | . . . . Triggered . | . . . . Machines | -11 -10 -10 -10 ---------- Run | Yrd Mat Min Sub Machines Disabled 6 | . 1 5 . Max in Single Turn 1 | . 1 1 . Machines Repaired . | . . . . Machines Dismantled . | . . . . Machines Sabotaged . | . . . . Overloaded Fab Kills . | . . . . Hacking | -11 -10 -10 -10 --------- Run | Yrd Mat Min Sub Machines Accessed 5 | . 4 . 1 Terminals 2 | . 2 . . Fabricators . | . . . . Repair Stations 1 | . 1 . . Recycling Units 1 | . 1 . . Scanalyzers . | . . . . Garrison Access . | . . . . Total Hacks 13 | . 10 . 3 Successful 5 | . 2 . 3 Failed 8 | . 8 . . Catastrophic . | . . . . Database Lockouts . | . . . . Manual 4 | . 4 . . Terminals 6 | . 6 . . Fabricators . | . . . . Repair Stations 2 | . 2 . . Recycling Units 2 | . 2 . . Scanalyzers . | . . . . Garrison Access . | . . . . Terminal Hacks 4 | . 1 . 3 Record 3 | . . . 3 Prototype ID Bank 1 | . 1 . . Fabricator Hacks . | . . . . Repair Station Hacks . | . . . . Recycling Unit Hacks . | . . . . Scanalyzer . | . . . . Garrison Access Hacks . | . . . . Unauthorized Hacks 1 | . 1 . . Terminals 1 | . 1 . . Botnet 1 | . 1 . . Fabricators . | . . . . Repair Stations . | . . . . Recycling Units . | . . . . Scanalyzers . | . . . . Garrison Access . | . . . . Data Cores Recovered . | . . . . Used . | . . . . Hacking Detections 4 | . 4 . . Full Trace Events . | . . . . Feedback Events . | . . . . Feedback Blocked . | . . . . Robot Schematics Acquired . | . . . . Robots Built . | . . . . Authchips . | . . . . Time . | . . . . Total Robot Build Rating . | . . . . Part Schematics Acquired . | . . . . Parts Built . | . . . . Authchips . | . . . . Time . | . . . . Total Part Build Rating . | . . . . Parts Repaired . | . . . . Time . | . . . . Parts Recycled . | . . . . Recycled Matter . | . . . . Retrieved Matter . | . . . . Retrieved Components . | . . . . Parts Scanalyzed . | . . . . Part Schematics Acquired . | . . . . Parts Damaged . | . . . . Bothacking | -11 -10 -10 -10 ------------ Run | Yrd Mat Min Sub Used RIF Installer . | . . . . Robots Hacked . | . . . . Non-combat . | . . . . Combat . | . . . . Robot Hacks Applied . | . . . . Relay Couplers Released . | . . . . Fabnet Peak Effective % . | . . . . Robots Rewired . | . . . . Allies Hacked . | . . . . Hacks Repelled . | . . . . Allies | -11 -10 -10 -10 -------- Run | Yrd Mat Min Sub Total Allies . | . . . . Largest Group . | . . . . Highest-Rated Group . | . . . . Highest-Rated Ally . | . . . . Total Orders . | . . . . Ally Attacks . | . . . . Total Damage . | . . . . Kills . | . . . . Allies Corrupted . | . . . . Allies Melted . | . . . . Intel | -11 -10 -10 -10 ------- Run | Yrd Mat Min Sub Robot Analysis Total . | . . . . Derelict Logs Recovered 2 | . . 1 1 Drone Launches . | . . . . Drone Recoveries . | . . . . Exploration | -11 -10 -10 -10 ------------- Run | Yrd Mat Min Sub Turns Passed 1247 | 59 410 169 609 Spaces Moved 1022 | 55 323 125 519 Core 13 | 13 . . . Treads . | . . . . Legs . | . . . . Wheels 1009 | 42 323 125 519 Hover . | . . . . Flight . | . . . . Fastest Speed 50 | 50 85 105 105 Average Speed 101 | 81 98 105 105 Slowest Speed 120 | 100 105 105 120 Overloaded Moves . | . . . . Propulsion Burnouts . | . . . . Robots Hopped . | . . . . Cave-ins Triggered . | . . . . Exploration Rate (%) 30 | 4 52 33 33 Regions Visited 3 Branch Regions 2 Pre-discovered Areas 2 | . . . 2 Known Exits Taken . | . . . . Unknown Exits Taken 3 | 1 1 1 . Scrap Searched 5 | . . 1 4 Spaces Dug 21 | . 21 . . Terrain Destroyed 95 | . 73 22 . Melee . | . . . . Projectile . | . . . . AOE 95 | . 73 22 . Terrain Rammed . | . . . . Walls Destroyed . | . . . . Machines Disabled . | . . . . Actions | -11 -10 -10 -10 --------- Run | Yrd Mat Min Sub Total 1166 | 71 380 145 570 Wait 31 | . 4 1 26 Move 1019 | 54 322 124 519 Hop . | . . . . Pick Up 33 | 10 15 1 7 Fast Attach 1 | . 1 . . Attach 12 | 6 2 . 4 Detach . | . . . . Swap 15 | . 8 1 6 Drop 8 | 1 2 1 4 Fire 47 | . 26 17 4 Melee . | . . . . Ram . | . . . . Kick . | . . . . Crush . | . . . . Escape Stasis . | . . . . Rewire . | . . . . Trap . | . . . . Miscellaneous . | . . . . Route ------- -11/Scrapyard -10/Materials (discovered 2 exits: [*Mat] / [*Min]) -10/Mines -10/Subcaves History --------- Turn | Location | Event 17 | -11/Scrapyard | Discovered new exit (range 15) 60 | -11/Scrapyard | Entered Materials 305 | -10/Materials | Build established: Mutant 321 | -10/Materials | Discovered new exit (range 3) 367 | -10/Materials | Core integrity fell below 50% 417 | -10/Materials | Discovered new exit (range 8) 470 | -10/Materials | Entered Mines 580 | -10/Mines | Learned location of 1 exit from Materials 627 | -10/Mines | Discovered new exit (range 9) 639 | -10/Mines | Entered Subcaves 767 | -10/Subcaves | Core integrity fell below 20% 854 | -10/Subcaves | Visited Clippyterm 857 | -10/Subcaves | Learned location of Section 7 (-3) 891 | -10/Subcaves | Learned location of 1 exit from Materials 938 | -10/Subcaves | Shifting Twisted Machinery released Sub. Power Source 941 | -10/Subcaves | Shifting Twisted Machinery released Sub. Power Source 1090 | -10/Subcaves | Learned location of Zion (-7) 1090 | -10/Subcaves | Met a Zionite searching for "candidates" 1248 | -10/Subcaves | Destroyed by SO-XZU(R) with Subdweller Machine Gun Last Messages --------------- Found 31 Matter. Acquired 31 matter. Searching scrap... Found Piercing Trap. Found Mak. Shrapnel Gun. Found 41 Matter. Acquired 41 matter. Dropped Grenade Launcher. System corrupted: Matter fused (-7). Acquired Mak. Shrapnel Gun. Acquired 9 matter. Searching scrap... Found Sub. Machine Gun. Found Piercing Trap. Found 68 Matter. Acquired 68 matter. System corrupted: Matter fused (-9). System corrupted: Matter fused (-5). Sub. Power Source shoots sparks and powers down. Dropped Broken Sub. Power Source. Map ----- +----------------------------------------------------+ | ?????????????????????????????????????????????????? | | ?????????????????????????????????????????????????? | | ?????????????????????????????????????????????????? | | ?????????????????????????????????????????????????? | | ?????????????????????????????????????????????????? | | ?????????????????????????????????????????????????? | | ?????????????????????????????????????????????????? | | ?#############???????????????????????????????????? | | ################?????????????????????????????????? | | ###"" ""%####?????????????????????????????????? | | ##" " " "###????????????????????????????????? | | #" #### = |]"###????????????????????????????????? | | # ##### [& &"##????????????????????????????????? | | #" ######" " ##????????????????????????????????? | | #" #######"" "###????????????????????????????????? | | #" ""############????????????????????????????????? | | ## ""###########?????????????????????????????????? | | ### # ##???????######????????????????????? | | # $"## [ "##???????######????????????????????? | | ""##" ##" ####??????#$#$##????????????????????? | | ####" "########???????& #????????????????????? | | ## " ### ####??###< ###????????????????????? | | ##########R #########?????????????? | | ## ### ###### # ##########?????????????? | | ### ### < < ###????????????? | | #### ### @ ##????????????? | | ##### ### #### ## ###???????????? | | ##### ######## *######### ##???????????? | | #### ##### ## ##### ? ##???????????? | | ###### ????????????? | | ######## ????????????? | | ###??### # ### ????????????? | | ????#### ### ####???????????????? | | ????## ##### ###?????????????????? | | ??? ## ##### ### ?????????????????? | | ??? # #?#### ###??????????????????? | | ???## #####??#### ##?????????????????? | | ???## #######???### ##?????????????????? | | ???## ### ????????# ####?????????????????? | | ???######??????????? ########?????????????????? | | ???# ##???????????? #########???????????????????? | | ? ## ?????????????? #####???????????????????????? | | ## ?????????????? ????????????????????????????? | | ???????? ????????????????????????????? | | ?????????????????????????????????????? | | ?????????????????????????????????????? | | ### ## ??????????????????????????????????????? | | ###### ??????????????????????????????????????? | | ###???????????????????????????????????????????? | | ## ???????????????????????????????????????????? | +----------------------------------------------------+ Best States ------------- Heat Dissipation 25 Coolant Potential 50 Energy Generation 15 Energy Capacity 250 Matter Stores 288 Matter Capacity 300 Sight Range 16 Terrain Scan Density 10 Armor Coverage 150 Evasion (%) 50 Item Schematics ----------------- None Robot Schematics ------------------ None Fabricated ------------ Nothing Alien Tech Used ----------------- None Achievements -------------- None Challenges ------------ None Game ------ Seed HelicalGuidanceMantle Manual? 0 Play Time 00:21:40 Cumulative 135.0 hours Start 2024.08.11 @ 02:19:25 End 2024.08.11 @ 02:39:28 Sessions 1 Manual Loads 0 Difficulty Rogue Special Mode None Game No. 133 Rogue 124 Adventurer 9 Explorer 0 Win Type - Total 0 Types 0/0/0/0/0/0/0/0/0 Lore% 37 Gallery% 61 Achievement% 48 Wizard Run 0 Options --------- Layout 1 ASCII 0 Keyboard 0 Movement Numpad Keybinds 0 Fullscreen 1 Font 24/Smallcaps Map View 50x35 Zoom Use 0% Tactical HUD 0 Map Filters NONE Filters NONE Steam 1 RUN: 14c13a88-6aa4-442a-b6d8-6e0554ff95b5